[Event "*** Titled Tuesday Blitz"]
[Site "Chess.com"]
[Date "2020.05.05"]
[Round "4"]
[White "SlavenPastar"]
[Black "wild_cat99"]
[Result "0-1"]
[WhiteElo "2362"]
[BlackElo "2569"]
[TimeControl "180+1"]
[EndTime "10:40:05 PDT"]
[Termination "wild_cat99 won by checkmate"]

1. d4 {[%clk 0:03:00.9]} 1... Nf6 {[%clk 0:02:59.8]} 2. c4 {[%clk 0:03:01.1]}
2... g6 {[%clk 0:02:59.9]} 3. Nf3 {[%clk 0:02:59.8]} 3... Bg7 {[%clk 0:02:59.4]}
4. Bg5 {[%clk 0:02:59.3]} 4... O-O {[%clk 0:02:57.4]} 5. Nc3 {[%clk 0:02:59]}
5... d5 {[%clk 0:02:53.1]} 6. Bxf6 {[%clk 0:02:54.3]} 6... exf6 {[%clk
0:02:47.4]} 7. cxd5 {[%clk 0:02:53.6]} 7... c6 {[%clk 0:02:48.3]} 8. dxc6 {[%clk
0:02:52.4]} 8... Nxc6 {[%clk 0:02:49.2]} 9. e3 {[%clk 0:02:52.8]} 9... f5 {[%clk
0:02:49.1]} 10. Be2 {[%clk 0:02:48.8]} 10... f4 {[%clk 0:02:49.2]} 11. exf4
{[%clk 0:02:45.3]} 11... Nxd4 {[%clk 0:02:47]} 12. Nxd4 {[%clk 0:02:45.2]} 12...
Bxd4 {[%clk 0:02:47.9]} 13. O-O {[%clk 0:02:42]} 13... Bf5 {[%clk 0:02:23.6]}
14. Bf3 {[%clk 0:02:39.2]} 14... Rb8 {[%clk 0:02:18.2]} 15. Qa4 {[%clk
0:02:26.9]} 15... b5 {[%clk 0:02:16.7]} 16. Nxb5 {[%clk 0:01:18.7]} 16... Bxb2
{[%clk 0:02:15.6]} 17. Nxa7 {[%clk 0:01:14.7]} 17... Bxa1 {[%clk 0:02:10.5]} 18.
Nc6 {[%clk 0:01:10.9]} 18... Bd7 {[%clk 0:02:01.6]} 19. Rxa1 {[%clk 0:01:03]}
19... Rb6 {[%clk 0:02:00.3]} 20. Nxd8 {[%clk 0:00:51.9]} 20... Bxa4 {[%clk
0:02:01.2]} 21. Nb7 {[%clk 0:00:47.3]} 21... Rb8 {[%clk 0:02:01.2]} 22. h3
{[%clk 0:00:32.8]} 22... R8xb7 {[%clk 0:01:59.4]} 23. Bxb7 {[%clk 0:00:33.7]}
23... Rxb7 {[%clk 0:02:00.3]} 24. Rc1 {[%clk 0:00:26.5]} 24... Rb2 {[%clk
0:02:00.5]} 25. Rc4 {[%clk 0:00:19.6]} 25... Rxa2 {[%clk 0:01:58.9]} 26. Rc8+
{[%clk 0:00:18.4]} 26... Kg7 {[%clk 0:01:58.9]} 27. Rc7 {[%clk 0:00:18.6]} 27...
h5 {[%clk 0:01:58.7]} 28. Rc5 {[%clk 0:00:18.2]} 28... Bd7 {[%clk 0:01:38.1]}
29. Rc7 {[%clk 0:00:17.8]} 29... Be6 {[%clk 0:01:36.6]} 30. Rc5 {[%clk
0:00:17.5]} 30... Kf6 {[%clk 0:01:34.5]} 31. Rc7 {[%clk 0:00:16.4]} 31... Kf5
{[%clk 0:01:33.7]} 32. g3 {[%clk 0:00:16.5]} 32... Ra1+ {[%clk 0:01:30.8]} 33.
Kh2 {[%clk 0:00:14.1]} 33... Bd5 {[%clk 0:01:30.9]} 34. g4+ {[%clk 0:00:07.1]}
34... hxg4 {[%clk 0:01:31.8]} 35. Kg3 {[%clk 0:00:07.1]} 35... Rg1+ {[%clk
0:01:30.3]} 36. Kh4 {[%clk 0:00:07.4]} 36... Rh1 {[%clk 0:01:26.6]} 37. Rc3
{[%clk 0:00:02.1]} 37... Rxh3+ {[%clk 0:01:25.6]} 38. Rxh3 {[%clk 0:00:03]}
38... gxh3 {[%clk 0:01:26.5]} 39. Kxh3 {[%clk 0:00:02.7]} 39... Kxf4 {[%clk
0:01:27.4]} 40. Kh2 {[%clk 0:00:03]} 40... Kf3 {[%clk 0:01:26.6]} 41. Kg1 {[%clk
0:00:03.9]} 41... g5 {[%clk 0:01:26.6]} 42. Kh2 {[%clk 0:00:04.8]} 42... g4
{[%clk 0:01:26.4]} 43. Kg1 {[%clk 0:00:05.7]} 43... g3 {[%clk 0:01:24.7]} 44.
Kf1 {[%clk 0:00:05.7]} 44... g2+ {[%clk 0:01:21.6]} 45. Kg1 {[%clk 0:00:05.9]}
45... f5 {[%clk 0:01:22]} 46. Kh2 {[%clk 0:00:05.5]} 46... Kxf2 {[%clk
0:01:22.9]} 47. Kh3 {[%clk 0:00:06]} 47... g1=Q {[%clk 0:01:22.6]} 48. Kh4
{[%clk 0:00:06.9]} 48... Qg4# {[%clk 0:01:23]} 0-1

[Event "*** Titled Tuesday Blitz"]
[Site "Chess.com"]
[Date "2020.05.05"]
[Round "4"]
[White "Diego_FloresQ"]
[Black "Stewie_89"]
[Result "0-1"]
[WhiteElo "2401"]
[BlackElo "2625"]
[TimeControl "180+1"]
[EndTime "10:40:06 PDT"]
[Termination "Stewie_89 won by resignation"]

1. e4 {[%clk 0:02:59.3]} 1... Nf6 {[%clk 0:02:59.1]} 2. e5 {[%clk 0:02:57.7]}
2... Nd5 {[%clk 0:02:59.1]} 3. c4 {[%clk 0:02:50.9]} 3... Nb6 {[%clk 0:02:58.3]}
4. d4 {[%clk 0:02:50.9]} 4... d6 {[%clk 0:02:58.4]} 5. exd6 {[%clk 0:02:51.8]}
5... cxd6 {[%clk 0:02:58.3]} 6. Nc3 {[%clk 0:02:50.6]} 6... g6 {[%clk
0:02:58.2]} 7. Be3 {[%clk 0:02:50.4]} 7... Bg7 {[%clk 0:02:58.4]} 8. Rc1 {[%clk
0:02:49.9]} 8... Nc6 {[%clk 0:02:58.5]} 9. b3 {[%clk 0:02:47.7]} 9... O-O {[%clk
0:02:58.1]} 10. Be2 {[%clk 0:02:48]} 10... e5 {[%clk 0:02:54.2]} 11. dxe5 {[%clk
0:02:48.1]} 11... dxe5 {[%clk 0:02:53.3]} 12. Qxd8 {[%clk 0:02:36.9]} 12... Rxd8
{[%clk 0:02:51.8]} 13. c5 {[%clk 0:02:37.4]} 13... Nd7 {[%clk 0:02:46.1]} 14.
Nf3 {[%clk 0:02:30.4]} 14... Nd4 {[%clk 0:02:38.1]} 15. Bxd4 {[%clk 0:01:20.4]}
15... exd4 {[%clk 0:02:36.1]} 16. Ne4 {[%clk 0:01:21]} 16... Ne5 {[%clk
0:02:21.6]} 17. Nxe5 {[%clk 0:01:05.4]} 17... Bxe5 {[%clk 0:02:20.5]} 18. Bd3
{[%clk 0:01:01.5]} 18... Bd7 {[%clk 0:02:07.4]} 19. O-O {[%clk 0:01:01.1]} 19...
Bc6 {[%clk 0:02:02.4]} 20. Rfe1 {[%clk 0:01:01.4]} 20... Re8 {[%clk 0:01:58.3]}
21. Rcd1 {[%clk 0:00:58.4]} 21... Rad8 {[%clk 0:01:57.4]} 22. h3 {[%clk
0:00:56.6]} 22... Kg7 {[%clk 0:01:57.5]} 23. Nd2 {[%clk 0:00:51.4]} 23... Bf6
{[%clk 0:01:53.1]} 24. Nc4 {[%clk 0:00:47.4]} 24... Rxe1+ {[%clk 0:01:50.9]} 25.
Rxe1 {[%clk 0:00:48.3]} 25... Rd5 {[%clk 0:01:48.9]} 26. b4 {[%clk 0:00:45.5]}
26... Rd7 {[%clk 0:01:34.6]} 27. Nd6 {[%clk 0:00:40.2]} 27... Bg5 {[%clk
0:01:08]} 28. Bc4 {[%clk 0:00:31.7]} 28... Bd2 {[%clk 0:01:04]} 29. Rb1 {[%clk
0:00:25.8]} 29... a6 {[%clk 0:01:03.9]} 30. a3 {[%clk 0:00:22.5]} 30... Re7
{[%clk 0:01:01.1]} 31. Rd1 {[%clk 0:00:22.4]} 31... Re1+ {[%clk 0:00:59.1]} 32.
Rxe1 {[%clk 0:00:21.9]} 32... Bxe1 {[%clk 0:01:00]} 33. Nxf7 {[%clk 0:00:20.9]}
33... Bc3 {[%clk 0:00:52.9]} 34. Nd6 {[%clk 0:00:20.9]} 34... Bb2 {[%clk
0:00:52.8]} 35. a4 {[%clk 0:00:18.3]} 35... Bxa4 {[%clk 0:00:51.8]} 36. Nxb7
{[%clk 0:00:18.9]} 36... Bc3 {[%clk 0:00:50.5]} 37. Bxa6 {[%clk 0:00:19.3]}
37... Bxb4 {[%clk 0:00:50]} 38. Kf1 {[%clk 0:00:19.9]} 38... Bc6 {[%clk
0:00:49.8]} 39. Ke2 {[%clk 0:00:19.8]} 39... Bxg2 {[%clk 0:00:49.1]} 40. f3
{[%clk 0:00:19.4]} 40... Bxh3 {[%clk 0:00:49.2]} 41. Kd3 {[%clk 0:00:19.1]}
41... Bc3 {[%clk 0:00:49.3]} 42. c6 {[%clk 0:00:17.8]} 42... Bf1+ {[%clk
0:00:49.3]} 0-1

[Event "*** Titled Tuesday Blitz"]
[Site "Chess.com"]
[Date "2020.05.05"]
[Round "4"]
[White "DivyaDeshmukh23"]
[Black "silverback96"]
[Result "1-0"]
[WhiteElo "2398"]
[BlackElo "2116"]
[TimeControl "180+1"]
[EndTime "10:40:06 PDT"]
[Termination "DivyaDeshmukh23 won by checkmate"]

1. e4 {[%clk 0:03:00.9]} 1... c5 {[%clk 0:02:57.5]} 2. Nf3 {[%clk 0:02:57.4]}
2... Nc6 {[%clk 0:02:57.6]} 3. d4 {[%clk 0:02:58.3]} 3... cxd4 {[%clk
0:02:58.5]} 4. Nxd4 {[%clk 0:02:57.3]} 4... Nf6 {[%clk 0:02:58.5]} 5. Nc3 {[%clk
0:02:55.9]} 5... e5 {[%clk 0:02:59]} 6. Ndb5 {[%clk 0:02:49.4]} 6... d6 {[%clk
0:02:59]} 7. Bg5 {[%clk 0:02:48.5]} 7... a6 {[%clk 0:02:58.8]} 8. Na3 {[%clk
0:02:46.8]} 8... b5 {[%clk 0:02:59.7]} 9. Nd5 {[%clk 0:02:46.6]} 9... Be7 {[%clk
0:02:59]} 10. Bxf6 {[%clk 0:02:46.5]} 10... Bxf6 {[%clk 0:02:59.9]} 11. c3
{[%clk 0:02:45.3]} 11... Ne7 {[%clk 0:02:59.2]} 12. Nc2 {[%clk 0:02:39.8]} 12...
Nxd5 {[%clk 0:02:58.4]} 13. Qxd5 {[%clk 0:02:40.7]} 13... Rb8 {[%clk 0:02:59]}
14. Nb4 {[%clk 0:02:38.7]} 14... Bb7 {[%clk 0:02:52.7]} 15. Qd2 {[%clk 0:02:29]}
15... O-O {[%clk 0:02:50.9]} 16. Bd3 {[%clk 0:02:27.3]} 16... Bg5 {[%clk
0:02:38]} 17. Qe2 {[%clk 0:02:23.9]} 17... a5 {[%clk 0:02:31.2]} 18. Nd5 {[%clk
0:02:11.9]} 18... b4 {[%clk 0:02:31.5]} 19. O-O {[%clk 0:02:04.9]} 19... Bxd5
{[%clk 0:02:29.4]} 20. exd5 {[%clk 0:02:02]} 20... f5 {[%clk 0:02:30.3]} 21.
cxb4 {[%clk 0:02:00]} 21... Rxb4 {[%clk 0:02:29]} 22. b3 {[%clk 0:01:49.9]}
22... e4 {[%clk 0:02:09.2]} 23. Bc4 {[%clk 0:01:48]} 23... Bf6 {[%clk
0:01:52.8]} 24. Rad1 {[%clk 0:01:44.8]} 24... Be5 {[%clk 0:01:53.7]} 25. f4
{[%clk 0:01:41.1]} 25... Qb6+ {[%clk 0:01:43.9]} 26. Kh1 {[%clk 0:01:35.2]}
26... Bf6 {[%clk 0:01:25.3]} 27. a3 {[%clk 0:01:29.7]} 27... Rxb3 {[%clk
0:01:22.5]} 28. Bxb3 {[%clk 0:01:28.8]} 28... Qxb3 {[%clk 0:01:23.4]} 29. Qa6
{[%clk 0:01:15.5]} 29... Qxa3 {[%clk 0:01:21.5]} 30. Rc1 {[%clk 0:01:13]} 30...
Bd4 {[%clk 0:01:08.4]} 31. Rc8 {[%clk 0:01:09.8]} 31... Bc5 {[%clk 0:00:58.9]}
32. Rxf8+ {[%clk 0:01:08.7]} 32... Kxf8 {[%clk 0:00:59.8]} 33. Qc8+ {[%clk
0:01:09.6]} 33... Kf7 {[%clk 0:00:59.4]} 34. Qxf5+ {[%clk 0:01:07.2]} 34... Kg8
{[%clk 0:00:58.3]} 35. Qxe4 {[%clk 0:01:04.4]} 35... h6 {[%clk 0:00:43.6]} 36.
Re1 {[%clk 0:00:50]} 36... Bb4 {[%clk 0:00:37.4]} 37. Qe6+ {[%clk 0:00:48.8]}
37... Kh8 {[%clk 0:00:34.5]} 38. Qc8+ {[%clk 0:00:43.6]} 38... Kh7 {[%clk
0:00:34.6]} 39. Qf5+ {[%clk 0:00:44.5]} 39... Kg8 {[%clk 0:00:33.7]} 40. Re8#
{[%clk 0:00:43.7]} 1-0

[Event "*** Titled Tuesday Blitz"]
[Site "Chess.com"]
[Date "2020.05.05"]
[Round "4"]
[White "Witik"]
[Black "Corpescador"]
[Result "1-0"]
[WhiteElo "2619"]
[BlackElo "2399"]
[TimeControl "180+1"]
[EndTime "10:40:07 PDT"]
[Termination "Witik won by resignation"]

1. d4 {[%clk 0:03:00.9]} 1... d5 {[%clk 0:02:59.3]} 2. c4 {[%clk 0:02:59.9]}
2... c6 {[%clk 0:02:59.4]} 3. Nc3 {[%clk 0:02:59.6]} 3... Nf6 {[%clk 0:02:59.7]}
4. e3 {[%clk 0:02:59.7]} 4... a6 {[%clk 0:02:58.5]} 5. Qc2 {[%clk 0:02:58.6]}
5... g6 {[%clk 0:02:54.4]} 6. Nf3 {[%clk 0:02:57.4]} 6... Bf5 {[%clk 0:02:52]}
7. Qb3 {[%clk 0:02:57.3]} 7... b5 {[%clk 0:02:51.9]} 8. cxd5 {[%clk 0:02:52.6]}
8... cxd5 {[%clk 0:02:51.9]} 9. Ne5 {[%clk 0:02:47.6]} 9... Bg7 {[%clk
0:02:28.1]} 10. a4 {[%clk 0:02:45.8]} 10... b4 {[%clk 0:02:27]} 11. Qxb4 {[%clk
0:02:43.8]} 11... O-O {[%clk 0:02:15.2]} 12. Be2 {[%clk 0:02:15.5]} 12... Nfd7
{[%clk 0:02:04.8]} 13. Nxd5 {[%clk 0:02:01.3]} 13... Re8 {[%clk 0:01:42.4]} 14.
Nxd7 {[%clk 0:01:49.4]} 14... Qxd7 {[%clk 0:01:34.5]} 15. Nb6 {[%clk 0:01:47.1]}
15... Nc6 {[%clk 0:01:16]} 16. Qa3 {[%clk 0:01:31.7]} 16... Qb7 {[%clk
0:00:26.8]} 17. Nxa8 {[%clk 0:01:30.9]} 17... Nb4 {[%clk 0:00:27.1]} 18. O-O
{[%clk 0:01:25]} 18... Nc2 {[%clk 0:00:23.4]} 19. Qa2 {[%clk 0:01:21]} 19...
Qxa8 {[%clk 0:00:21]} 20. Bd2 {[%clk 0:01:16.2]} 20... Nxa1 {[%clk 0:00:20.1]}
21. Qxa1 {[%clk 0:01:16.2]} 21... a5 {[%clk 0:00:20.6]} 22. b3 {[%clk
0:01:08.2]} 22... e5 {[%clk 0:00:19.6]} 23. Bc3 {[%clk 0:01:07.9]} 23... Be4
{[%clk 0:00:17.2]} 24. f3 {[%clk 0:01:05.6]} 24... Bd5 {[%clk 0:00:16.7]} 25.
dxe5 {[%clk 0:01:01.3]} 25... Bxb3 {[%clk 0:00:15.8]} 26. Bd4 {[%clk 0:00:57.9]}
26... Be6 {[%clk 0:00:13.9]} 27. Rc1 {[%clk 0:00:56.8]} 27... h5 {[%clk
0:00:13.7]} 28. Bb5 {[%clk 0:00:56.6]} 28... Rd8 {[%clk 0:00:13.4]} 29. Qc3
{[%clk 0:00:55.8]} 29... Qd5 {[%clk 0:00:13]} 30. Qxa5 {[%clk 0:00:52.8]} 30...
h4 {[%clk 0:00:13.1]} 31. h3 {[%clk 0:00:49.6]} 31... Ra8 {[%clk 0:00:09.4]} 32.
Qc3 {[%clk 0:00:46.2]} 32... Qa2 {[%clk 0:00:09.1]} 33. Rc2 {[%clk 0:00:42.9]}
33... Qb1+ {[%clk 0:00:08.4]} 34. Kh2 {[%clk 0:00:43.3]} 34... Qf1 {[%clk
0:00:07.7]} 35. Bxf1 {[%clk 0:00:40.3]} 1-0

[Event "*** Titled Tuesday Blitz"]
[Site "Chess.com"]
[Date "2020.05.05"]
[Round "4"]
[White "IljaJoke"]
[Black "Vesper2018"]
[Result "0-1"]
[WhiteElo "2551"]
[BlackElo "2164"]
[TimeControl "180+1"]
[EndTime "10:40:08 PDT"]
[Termination "Vesper2018 won by resignation"]

1. d4 {[%clk 0:03:00.9]} 1... Nf6 {[%clk 0:02:59.7]} 2. c4 {[%clk 0:03:01]} 2...
g6 {[%clk 0:02:59.6]} 3. h4 {[%clk 0:03:01.3]} 3... Bg7 {[%clk 0:02:57.6]} 4.
Nc3 {[%clk 0:03:00.9]} 4... d6 {[%clk 0:02:54.8]} 5. e4 {[%clk 0:03:00.6]} 5...
h5 {[%clk 0:02:49]} 6. Be2 {[%clk 0:03:00.1]} 6... c5 {[%clk 0:02:46.1]} 7. d5
{[%clk 0:02:59.7]} 7... Nbd7 {[%clk 0:02:44.7]} 8. Bg5 {[%clk 0:02:41.2]} 8...
Ne5 {[%clk 0:02:43.5]} 9. f3 {[%clk 0:02:35.9]} 9... Bd7 {[%clk 0:02:39.5]} 10.
Nh3 {[%clk 0:02:33.3]} 10... a6 {[%clk 0:02:36.2]} 11. a4 {[%clk 0:02:32.6]}
11... Qb6 {[%clk 0:02:28.4]} 12. O-O {[%clk 0:01:35.6]} 12... Qxb2 {[%clk
0:02:13.8]} 13. Bd2 {[%clk 0:01:35.6]} 13... Qb6 {[%clk 0:02:11.7]} 14. Rb1
{[%clk 0:01:35.7]} 14... Qc7 {[%clk 0:02:11.5]} 15. Qb3 {[%clk 0:01:36]} 15...
Rb8 {[%clk 0:02:04.2]} 16. Qb6 {[%clk 0:01:22.4]} 16... Qc8 {[%clk 0:01:58.9]}
17. Ng5 {[%clk 0:01:19.1]} 17... O-O {[%clk 0:01:56.2]} 18. a5 {[%clk
0:01:18.7]} 18... Ne8 {[%clk 0:01:48.6]} 19. Qb3 {[%clk 0:01:12.8]} 19... Nc7
{[%clk 0:01:41.4]} 20. f4 {[%clk 0:01:02.5]} 20... Ng4 {[%clk 0:01:40.1]} 21. f5
{[%clk 0:00:52.7]} 21... gxf5 {[%clk 0:01:28.3]} 22. exf5 {[%clk 0:00:51.2]}
22... Bxf5 {[%clk 0:01:25.7]} 23. Nce4 {[%clk 0:00:35.2]} 23... Bg6 {[%clk
0:01:19.4]} 24. Bc3 {[%clk 0:00:27.4]} 24... f6 {[%clk 0:01:15.6]} 25. Bxg4
{[%clk 0:00:20]} 25... Qxg4 {[%clk 0:01:08]} 26. Nf2 {[%clk 0:00:20]} 26... Qg3
{[%clk 0:00:57.6]} 27. Rbe1 {[%clk 0:00:12.4]} 27... fxg5 {[%clk 0:00:52.4]} 28.
Rxe7 {[%clk 0:00:12]} 28... Qxc3 {[%clk 0:00:48.3]} 29. Qb6 {[%clk 0:00:12.4]}
29... Ne8 {[%clk 0:00:34.6]} 30. Qa7 {[%clk 0:00:12.8]} 30... Nf6 {[%clk
0:00:30.2]} 31. hxg5 {[%clk 0:00:13.2]} 31... Ng4 {[%clk 0:00:28.3]} 0-1

[Event "*** Titled Tuesday Blitz"]
[Site "Chess.com"]
[Date "2020.05.05"]
[Round "4"]
[White "NodariousBIG"]
[Black "Glidzhian_Gor"]
[Result "1-0"]
[WhiteElo "2719"]
[BlackElo "2487"]
[TimeControl "180+1"]
[EndTime "10:40:09 PDT"]
[Termination "NodariousBIG won by resignation"]

1. e4 {[%clk 0:03:00.9]} 1... c5 {[%clk 0:02:58.5]} 2. c3 {[%clk 0:03:01]} 2...
g6 {[%clk 0:02:56.2]} 3. d4 {[%clk 0:03:00.9]} 3... cxd4 {[%clk 0:02:55.8]} 4.
cxd4 {[%clk 0:03:01.8]} 4... Bg7 {[%clk 0:02:56.3]} 5. Nf3 {[%clk 0:03:01.7]}
5... d6 {[%clk 0:02:56.8]} 6. Nc3 {[%clk 0:03:02]} 6... Nf6 {[%clk 0:02:57.2]}
7. h3 {[%clk 0:03:01.6]} 7... O-O {[%clk 0:02:57.3]} 8. Bd3 {[%clk 0:03:01.2]}
8... Nc6 {[%clk 0:02:57.7]} 9. O-O {[%clk 0:03:01.4]} 9... e5 {[%clk 0:02:54.7]}
10. dxe5 {[%clk 0:03:01]} 10... dxe5 {[%clk 0:02:54.5]} 11. Bg5 {[%clk
0:02:59.6]} 11... h6 {[%clk 0:02:54.9]} 12. Bxf6 {[%clk 0:02:59.9]} 12... Bxf6
{[%clk 0:02:50.2]} 13. Nd5 {[%clk 0:03:00.2]} 13... Bg7 {[%clk 0:02:50.4]} 14.
Bc4 {[%clk 0:02:59.6]} 14... Nd4 {[%clk 0:02:49.5]} 15. Nxd4 {[%clk 0:02:57.4]}
15... exd4 {[%clk 0:02:50.4]} 16. Qd3 {[%clk 0:02:57.7]} 16... Be6 {[%clk
0:02:49.7]} 17. f4 {[%clk 0:02:57.6]} 17... Rc8 {[%clk 0:02:03.6]} 18. a4 {[%clk
0:02:55.6]} 18... Kh7 {[%clk 0:01:52.7]} 19. f5 {[%clk 0:02:35]} 19... Bxd5
{[%clk 0:01:14.8]} 20. Bxd5 {[%clk 0:02:33]} 20... Qg5 {[%clk 0:01:15.2]} 21. e5
{[%clk 0:01:56.7]} 21... Bxe5 {[%clk 0:00:18]} 22. Bxf7 {[%clk 0:01:37.6]} 22...
Qe3+ {[%clk 0:00:17.8]} 23. Qxe3 {[%clk 0:01:37.7]} 23... dxe3 {[%clk
0:00:18.7]} 24. fxg6+ {[%clk 0:01:31.8]} 24... Kg7 {[%clk 0:00:19.3]} 25. Rfe1
{[%clk 0:01:26.5]} 25... Bxb2 {[%clk 0:00:18.1]} 26. Rab1 {[%clk 0:01:26.3]}
26... Rc2 {[%clk 0:00:18.8]} 27. a5 {[%clk 0:01:18.8]} 27... e2 {[%clk
0:00:18.3]} 28. Kf2 {[%clk 0:01:16.5]} 28... Bd4+ {[%clk 0:00:18.1]} 29. Kf3
{[%clk 0:01:16.9]} 29... Rc3+ {[%clk 0:00:11.4]} 30. Kxe2 {[%clk 0:01:13.3]}
30... b6 {[%clk 0:00:09.8]} 31. Red1 {[%clk 0:01:11]} 31... Bc5 {[%clk
0:00:09.4]} 32. Rd7 {[%clk 0:01:10.2]} 32... Rg3 {[%clk 0:00:09.9]} 33. a6
{[%clk 0:01:05]} 33... Rxg2+ {[%clk 0:00:09.1]} 34. Kd3 {[%clk 0:01:05.4]} 34...
Rg3+ {[%clk 0:00:08.4]} 35. Kc4 {[%clk 0:01:05.5]} 35... Rxh3 {[%clk 0:00:08.9]}
36. Rxa7 {[%clk 0:01:02.6]} 36... Rh4+ {[%clk 0:00:09]} 37. Kb5 {[%clk
0:01:02.6]} 37... Rb4+ {[%clk 0:00:07.1]} 38. Rxb4 {[%clk 0:01:01.9]} 38... Bxb4
{[%clk 0:00:06.2]} 39. Kxb4 {[%clk 0:01:02.3]} 39... h5 {[%clk 0:00:07.1]} 40.
Rb7 {[%clk 0:01:00.8]} 40... h4 {[%clk 0:00:07.7]} 41. a7 {[%clk 0:01:01]} 41...
h3 {[%clk 0:00:08]} 42. Be6+ {[%clk 0:01:00.6]} 42... Kxg6 {[%clk 0:00:07.8]}
43. Bxh3 {[%clk 0:01:00.4]} 1-0

[Event "*** Titled Tuesday Blitz"]
[Site "Chess.com"]
[Date "2020.05.05"]
[Round "4"]
[White "atwalcb"]
[Black "chesstrainer2042"]
[Result "0-1"]
[WhiteElo "2237"]
[BlackElo "2438"]
[TimeControl "180+1"]
[EndTime "10:40:09 PDT"]
[Termination "chesstrainer2042 won by resignation"]

1. d4 {[%clk 0:03:00.9]} 1... Nf6 {[%clk 0:02:59.1]} 2. Bg5 {[%clk 0:03:00]}
2... d5 {[%clk 0:02:53.9]} 3. Bxf6 {[%clk 0:02:59.8]} 3... gxf6 {[%clk
0:02:53.7]} 4. e3 {[%clk 0:02:59.3]} 4... c5 {[%clk 0:02:53]} 5. g3 {[%clk
0:02:49.6]} 5... cxd4 {[%clk 0:02:43.2]} 6. exd4 {[%clk 0:02:49.2]} 6... Nc6
{[%clk 0:02:43.8]} 7. c3 {[%clk 0:02:47.9]} 7... e5 {[%clk 0:02:38.7]} 8. dxe5
{[%clk 0:02:42.6]} 8... fxe5 {[%clk 0:02:38.5]} 9. Bg2 {[%clk 0:02:42.9]} 9...
Be6 {[%clk 0:02:38.9]} 10. Nf3 {[%clk 0:02:40.1]} 10... Be7 {[%clk 0:02:34.3]}
11. O-O {[%clk 0:02:40.1]} 11... O-O {[%clk 0:02:32.8]} 12. Re1 {[%clk
0:02:39.4]} 12... Qc7 {[%clk 0:02:28.1]} 13. Nbd2 {[%clk 0:02:31.8]} 13... Rad8
{[%clk 0:02:27.2]} 14. h4 {[%clk 0:02:22.2]} 14... Bg4 {[%clk 0:02:23.4]} 15.
Qa4 {[%clk 0:02:17.4]} 15... e4 {[%clk 0:02:20.3]} 16. Nd4 {[%clk 0:02:11]}
16... Bf6 {[%clk 0:02:04.4]} 17. N2b3 {[%clk 0:01:48.4]} 17... Rfe8 {[%clk
0:02:00.2]} 18. Nxc6 {[%clk 0:01:46.8]} 18... bxc6 {[%clk 0:01:58.9]} 19. Bf1
{[%clk 0:01:22.1]} 19... Kh8 {[%clk 0:01:52.8]} 20. Be2 {[%clk 0:01:21.8]} 20...
Bc8 {[%clk 0:01:48.8]} 21. Nc5 {[%clk 0:01:18.6]} 21... Rg8 {[%clk 0:01:41.6]}
22. Kh2 {[%clk 0:01:07.3]} 22... Bxh4 {[%clk 0:01:40.4]} 23. Qd4+ {[%clk
0:01:06.8]} 23... Rg7 {[%clk 0:01:31.2]} 24. Rg1 {[%clk 0:00:54.8]} 24... Be7
{[%clk 0:01:25.5]} 25. Rh1 {[%clk 0:00:34.3]} 25... Bd6 {[%clk 0:01:16.8]} 26.
Rag1 {[%clk 0:00:34.2]} 26... Qe7 {[%clk 0:01:11.6]} 27. b4 {[%clk 0:00:32.1]}
27... Rg8 {[%clk 0:00:53]} 28. Kg2 {[%clk 0:00:30.3]} 28... Be5 {[%clk
0:00:52.4]} 29. Qe3 {[%clk 0:00:30.2]} 29... f5 {[%clk 0:00:51.7]} 30. Kf1
{[%clk 0:00:24.3]} 30... Qf6 {[%clk 0:00:50.1]} 31. Qh6 {[%clk 0:00:22.6]} 31...
f4 {[%clk 0:00:44]} 32. Qxf6 {[%clk 0:00:21.4]} 32... Bxf6 {[%clk 0:00:44.1]}
33. gxf4 {[%clk 0:00:19.3]} 33... Bh3+ {[%clk 0:00:44]} 34. Ke1 {[%clk
0:00:18.9]} 34... Bxc3+ {[%clk 0:00:42.2]} 35. Kd1 {[%clk 0:00:18.5]} 35...
Rxg1+ {[%clk 0:00:42.4]} 36. Rxg1 {[%clk 0:00:18.6]} 36... Rxg1+ {[%clk
0:00:42.9]} 0-1